bitfinex/quotes_SOLUSD_20240712
["timestamp","ask_amount","ask_price","bid_price","bid_amount"]
[1720799732073,17.26,139.28,139.25,22.789]
[1720799732285,17.26,139.28,139.26,20.0]
[1720799732597,7.1778,139.32,139.25,22.789]
[1720799732783,17.26,139.27,139.25,22.789]
[1720799732978,17.26,139.28,139.25,22.789]
[1720799733894,78.48175102,139.36,139.26,20.0]
[1720799733895,17.26,139.3,139.26,20.0]
[1720799734971,17.26,139.3,139.27,20.0]
[1720799735177,17.26,139.29,139.26,20.0]
[1720799735377,17.26,139.28,139.26,20.0]
[1720799738484,17.26,139.28,139.27,20.0]
[1720799738700,17.26,139.28,139.26,20.0]
[1720799739572,17.26,139.29,139.26,20.0]
[1720799739776,96.42155102,139.36,139.26,20.0]
[1720799739777,7.1765,139.35,139.26,20.0]
[1720799739977,17.26,139.29,139.26,20.0]
[1720799740495,78.48175102,139.36,139.26,37.26]
[1720799740496,17.26,139.31,139.26,37.26]
[1720799740683,17.26,139.3,139.26,20.0]
[1720799740893,17.26,139.31,139.26,37.26]
[1720799741702,17.26,139.3,139.26,20.0]
[1720799742073,7.1768,139.34,139.26,20.0]
[1720799742274,17.26,139.29,139.26,20.0]
[1720799742480,17.26,139.3,139.26,20.0]
[1720799743081,17.26,139.29,139.26,20.0]
[1720799747311,17.26,139.3,139.26,20.0]
[1720799748387,17.26,139.29,139.26,20.0]
[1720799750298,17.26,139.28,139.26,20.0]
[1720799750819,17.26,139.28,139.24,20.0]
[1720799751116,7.1771,139.34,139.23,17.26]
[1720799751294,17.26,139.29,139.24,17.26]
[1720799752200,17.26,139.29,139.25,1.43323965]
[1720799752508,7.1764,139.35,139.24,17.26]
[1720799752713,17.26,139.29,139.25,65.0]
[1720799753094,17.26,139.29,139.25,20.0]
[1720799753289,17.26,139.29,139.22,20.0]
[1720799753491,17.26,139.29,139.23,45.0]
[1720799753715,17.26,139.29,139.24,20.0]
[1720799754098,17.26,139.28,139.24,20.0]
[1720799754716,15.4497,139.35,139.24,20.0]
[1720799754921,17.26,139.29,139.24,37.26]
[1720799756013,17.26,139.29,139.25,45.0]
[1720799756209,17.26,139.29,139.26,20.0]
[1720799757717,17.26,139.29,139.22,20.0]
[1720799758037,17.26,139.29,139.23,45.0]
[1720799758187,17.26,139.29,139.24,20.0]
[1720799758898,17.26,139.29,139.25,1.43602712]
[1720799759298,17.26,139.29,139.24,20.0]
[1720799759615,17.26,139.29,139.25,0.79731819]
[1720799760414,17.26,139.29,139.25,1.43600721]
[1720799760798,17.26,139.3,139.25,1.43596252]
[1720799761017,17.26,139.3,139.25,46.43596252]
[1720799761316,17.26,139.3,139.26,20.0]
[1720799761486,17.26,139.3,139.27,1.43584549]
[1720799761915,15.4497,139.35,139.26,20.0]
[1720799762212,17.26,139.31,139.26,37.26]
[1720799762520,15.4497,139.35,139.3,17.26]
[1720799762521,17.26,139.35,139.3,17.26]
[1720799762693,16.6116,139.38,139.31,20.69063869]
[1720799763023,17.26,139.35,139.31,37.95063869]
[1720799763315,16.6116,139.38,139.31,37.26]
[1720799763613,443.02279489,139.41,139.32,17.95044042]
[1720799763817,443.02279489,139.41,139.33,0.69039086]
[1720799763992,17.26,139.37,139.33,20.69039086]
[1720799764187,435.84929489,139.41,139.33,20.69039086]
[1720799764391,435.84929489,139.41,139.33,37.95039086]
[1720799764625,17.26,139.38,139.34,45.0]
[1720799764916,17.26,139.38,139.35,20.0]
[1720799765298,17.26,139.37,139.35,20.0]
[1720799765614,17.26,139.37,139.33,20.0]
[1720799766620,17.26,139.36,139.33,20.0]
[1720799766923,17.26,139.37,139.33,20.0]
[1720799767626,17.26,139.36,139.33,20.0]
[1720799770221,17.26,139.37,139.33,20.0]
[1720799770540,419.81059489,139.41,139.34,45.0]
[1720799770828,419.81059489,139.41,139.35,37.26]
[1720799771195,17.26,139.39,139.35,20.0]
[1720799771432,419.81059489,139.41,139.35,20.0]
[1720799771728,17.26,139.39,139.35,20.0]
[1720799771923,17.26,139.4,139.35,20.0]
[1720799772128,419.81059489,139.41,139.37,17.26]
[1720799772338,419.81059489,139.41,139.38,20.0]
[1720799772510,437.07059489,139.41,139.38,20.0]
[1720799772916,437.07059489,139.41,139.37,20.0]
[1720799775931,419.81059489,139.41,139.37,58.9989]
[1720799776137,419.81059489,139.41,139.37,41.7389]
[1720799776435,419.81059489,139.41,139.37,58.9989]
[1720799777012,419.81059489,139.41,139.37,41.7389]
[1720799777439,419.81059489,139.41,139.38,17.26]
[1720799777623,419.81059489,139.41,139.39,20.0]
[1720799778211,419.81059489,139.41,139.38,20.0]
[1720799778914,437.07059489,139.41,139.38,20.0]
[1720799779311,419.81059489,139.41,139.38,20.0]
[1720799779720,419.81059489,139.41,139.38,37.26]
[1720799779940,419.81059489,139.41,139.4,17.26]
[1720799780139,419.81059489,139.41,139.4,20.0]
[1720799780432,419.81059489,139.41,139.4,82.26]
[1720799782033,382.56689961,139.41,139.4,89.2637]
[1720799782243,365.56689961,139.41,139.4,89.2637]
[1720799782420,364.73649961,139.41,139.4,89.2637]
[1720799783217,362.76233092,139.41,139.4,89.2637]
[1720799783542,362.76233092,139.41,139.4,72.0037]
[1720799783733,362.76233092,139.41,139.4,89.2637]
[1720799785032,362.76233092,139.41,139.4,74.90517075]
[1720799785540,362.76233092,139.41,139.4,92.16517075]
[1720799785947,362.76233092,139.41,139.4,91.33477075]
[1720799786538,362.76233092,139.41,139.4,88.4333]
[1720799787134,337.76233092,139.41,139.4,88.4333]
[1720799787626,324.56233092,139.41,139.4,88.4333]
[1720799787822,322.46233092,139.41,139.4,88.4333]
[1720799788029,316.69251251,139.41,139.4,88.4333]
[1720799788336,314.53631643,139.41,139.4,88.4333]
[1720799788946,311.65011729,139.41,139.4,88.4333]
[1720799789262,265.55011729,139.41,139.4,88.4333]
[1720799789630,263.45011729,139.41,139.4,88.4333]
[1720799789951,261.35011729,139.41,139.4,95.75139777]
[1720799790175,258.33011729,139.41,139.4,95.75139777]
[1720799790450,255.53011729,139.41,139.4,95.75139777]
[1720799790659,253.43011729,139.41,139.4,95.75139777]
[1720799791736,253.43011729,139.41,139.4,78.49139777]
[1720799792051,253.43011729,139.41,139.4,68.4333]
[1720799792352,253.43011729,139.41,139.4,62.26]
[1720799792656,253.43011729,139.41,139.4,17.26]
[1720799792950,253.43011729,139.41,139.39,2.78384751]
[1720799793157,253.43011729,139.41,139.4,17.26]
[1720799793929,253.43011729,139.41,139.37,6.2788]
[1720799794350,253.43011729,139.41,139.39,17.26]
[1720799794758,253.43011729,139.41,139.36,10.12573417]
[1720799794950,253.43011729,139.41,139.38,17.26]
[1720799795646,17.26,139.39,139.33,6.5525]
[1720799795843,17.26,139.39,139.34,17.26]
[1720799796242,16.6143,139.4,139.34,17.26]
[1720799796453,33.8743,139.4,139.35,17.26]
[1720799796650,16.6143,139.4,139.36,17.26]
[1720799796955,16.6143,139.4,139.37,17.26]
[1720799797461,16.6143,139.4,139.38,20.0]
[1720799797663,33.8743,139.4,139.38,20.0]
[1720799797847,16.6143,139.4,139.38,20.0]
[1720799798343,16.6143,139.4,139.36,17.26]
[1720799798344,16.6143,139.4,139.37,20.0]
[1720799799660,16.6143,139.4,139.38,17.26]
[1720799799841,253.43011729,139.41,139.39,37.26]
[1720799800036,253.43011729,139.41,139.4,20.0]
[1720799800234,253.43011729,139.41,139.4,37.26]
[1720799800643,253.43011729,139.41,139.4,82.26]
[1720799800844,253.43011729,139.41,139.4,37.26]
[1720799801058,253.43011729,139.41,139.4,20.0]
[1720799801758,253.43011729,139.41,139.39,20.0]
[1720799802164,253.43011729,139.41,139.39,37.26]
[1720799802343,253.43011729,139.41,139.39,20.0]
[1720799802748,270.69011729,139.41,139.39,20.0]
[1720799802941,253.43011729,139.41,139.39,17.26]
[1720799803136,253.43011729,139.41,139.4,37.26]
[1720799803441,253.43011729,139.41,139.4,62.26]
[1720799803655,253.43011729,139.41,139.4,82.26]
[1720799804368,253.43011729,139.41,139.4,65.0]
[1720799805439,253.43011729,139.41,139.4,82.26]
[1720799806561,253.43011729,139.41,139.4,65.0]
[1720799806765,253.43011729,139.41,139.4,82.26]
[1720799807176,253.43011729,139.41,139.4,65.0]
[1720799807467,253.43011729,139.41,139.4,37.26]
[1720799807973,253.43011729,139.41,139.4,82.26]
[1720799812168,34.39223121,139.41,139.4,92.76142806]
[1720799812362,31.59223121,139.41,139.4,92.76142806]
[1720799812566,31.59223121,139.41,139.4,100.65730361]
[1720799812981,20.01223121,139.41,139.4,100.65730361]
[1720799813273,20.01223121,139.41,139.4,107.85830361]
[1720799814168,20.01223121,139.41,139.4,100.65730361]
[1720799815557,20.01223121,139.41,139.4,55.50142806]
[1720799815861,20.01223121,139.41,139.4,62.26]
[1720799816868,20.01223121,139.41,139.4,82.26]
[1720799817054,20.01223121,139.41,139.4,45.0]
[1720799817460,20.01223121,139.41,139.4,62.26]
[1720799818455,20.01223121,139.41,139.4,82.26]
[1720799826083,20.01223121,139.41,139.4,37.26]
[1720799826289,20.01223121,139.41,139.4,20.0]
[1720799826583,20.01223121,139.41,139.4,17.26]
[1720799826764,20.01223121,139.41,139.4,37.26]
[1720799827557,20.01223121,139.41,139.4,82.26]
[1720799829594,0.73603121,139.41,139.4,82.26]
[1720799829777,3.121e-05,139.41,139.4,82.26]
[1720799830285,3.121e-05,139.41,139.4,85.08052668]
[1720799831176,0.8740007,139.47,139.4,86.51276356]
[1720799831500,0.8740007,139.47,139.46,17.26]
[1720799831663,0.8740007,139.47,139.46,82.26]
[1720799832278,0.8740007,139.47,139.46,65.0]
[1720799832483,0.8740007,139.47,139.46,82.26]
[1720799832692,0.8740007,139.47,139.46,65.0]
[1720799833474,0.8740007,139.47,139.46,82.26]
[1720799834280,0.8740007,139.47,139.46,65.0]
[1720799836769,0.8740007,139.47,139.41,10.42920584]
[1720799837096,0.8740007,139.47,139.42,17.26]
[1720799837296,18.1340007,139.47,139.42,17.26]
[1720799837600,0.8740007,139.47,139.43,17.26]
[1720799837804,0.8740007,139.47,139.45,17.26]
[1720799838108,0.8740007,139.47,139.46,62.26]
[1720799838313,0.8740007,139.47,139.46,45.0]
[1720799838489,0.8740007,139.47,139.46,65.0]
[1720799838675,0.8740007,139.47,139.46,20.0]
[1720799839001,0.8740007,139.47,139.45,20.0]
[1720799839800,0.8740007,139.47,139.44,17.26]
[1720799839985,0.8740007,139.47,139.45,82.26]
[1720799840496,0.8740007,139.47,139.45,65.0]
[1720799841079,0.8740007,139.47,139.45,82.26]
[1720799841793,0.8740007,139.47,139.45,20.0]
[1720799841986,0.8740007,139.47,139.41,10.42920584]
[1720799842312,18.1340007,139.47,139.42,17.26]
[1720799842802,17.26,139.46,139.41,17.26]
[1720799843179,0.8740007,139.47,139.41,17.26]
[1720799843399,17.26,139.46,139.42,1.43412718]
[1720799843580,17.26,139.45,139.42,1.43412718]
[1720799843778,17.26,139.45,139.41,17.26]
[1720799843996,17.26,139.45,139.42,20.0]
[1720799844175,17.26,139.45,139.42,65.0]
[1720799844374,0.8740007,139.47,139.42,65.0]
[1720799844614,17.26,139.46,139.42,65.0]
[1720799845304,18.1340007,139.47,139.42,82.26]
[1720799847189,0.8740007,139.47,139.43,17.26]
[1720799847503,17.26,139.46,139.44,20.0]
[1720799848010,17.26,139.45,139.4,17.26]
[1720799848207,17.26,139.44,139.39,17.26]
[1720799848583,32.5113,139.43,139.38,405.46817829]
[1720799848799,32.5113,139.43,139.38,397.96]
[1720799849185,32.5113,139.43,139.39,20.0]
[1720799850997,32.5113,139.43,139.38,397.96]
[1720799850998,17.26,139.4,139.38,380.7]
[1720799852508,17.26,139.4,139.39,20.0]
[1720799852704,15.8234,139.39,139.28,6.4469]
[1720799853002,17.26,139.34,139.29,17.26]
[1720799853188,17.26,139.33,139.29,7.51255194]
[1720799853392,15.8234,139.39,139.28,17.26]
[1720799853591,15.8234,139.39,139.26,17.26]
[1720799853797,15.8234,139.39,139.3,17.26]
[1720799854002,17.26,139.35,139.3,17.26]
[1720799854201,17.26,139.35,139.31,17.26]
[1720799855003,15.8234,139.39,139.32,20.0]
[1720799855185,17.26,139.36,139.32,20.0]
[1720799855506,17.26,139.35,139.32,20.0]
[1720799855693,17.26,139.35,139.33,45.0]
[1720799855897,15.8234,139.39,139.34,20.0]
[1720799856198,17.26,139.37,139.34,20.0]
[1720799856585,15.8234,139.39,139.32,62.26]
[1720799856586,17.26,139.36,139.33,20.0]
[1720799856796,17.26,139.36,139.34,45.0]
[1720799856997,17.26,139.36,139.35,20.0]
[1720799859387,15.8234,139.39,139.35,20.0]
[1720799859598,15.8234,139.39,139.36,45.0]
[1720799859789,17.26,139.38,139.37,20.0]
[1720799860502,17.26,139.38,139.34,37.26]
[1720799860713,17.26,139.38,139.35,45.0]
[1720799860917,17.26,139.38,139.36,20.0]
[1720799861113,15.8234,139.39,139.36,20.0]
[1720799861295,17.26,139.38,139.36,20.0]
[1720799861607,15.8234,139.39,139.36,20.0]
[1720799861608,17.26,139.37,139.36,20.0]
[1720799861815,17.26,139.37,139.3,6.2578]
[1720799862110,15.8234,139.39,139.29,20.13857286]
[1720799862111,17.26,139.34,139.29,20.13857286]
[1720799862315,17.26,139.33,139.29,2.87857286]
[1720799862491,6.6387,139.37,139.29,17.26]
[1720799862690,17.26,139.33,139.29,17.26]
[1720799862904,17.26,139.33,139.28,17.26]
[1720799863213,17.26,139.32,139.27,30.89236434]
[1720799863792,69.04,139.36,139.27,7.51296434]
[1720799863793,17.26,139.31,139.27,7.51296434]
[1720799864015,17.26,139.31,139.26,17.26]
[1720799864615,16.4037,139.35,139.25,7.51476382]
[1720799865116,16.4037,139.35,139.26,20.0]
[1720799866614,16.4037,139.35,139.27,45.0]
[1720799866920,16.4037,139.35,139.28,20.0]
[1720799867228,16.4037,139.35,139.29,45.0]
[1720799867514,16.4037,139.35,139.3,20.0]
[1720799867826,16.4037,139.35,139.31,45.0]
[1720799867995,16.4037,139.35,139.32,20.0]
[1720799868501,16.4037,139.35,139.25,7.51476382]
[1720799868502,16.4037,139.35,139.26,20.0]
[1720799869707,16.4037,139.35,139.27,45.0]
[1720799869901,16.4037,139.35,139.28,20.0]
[1720799870117,16.4037,139.35,139.29,45.0]
[1720799870413,16.4037,139.35,139.3,20.0]
[1720799870640,16.4037,139.35,139.31,45.0]
[1720799870805,16.4037,139.35,139.32,20.0]
[1720799874412,16.4037,139.35,139.24,20.0]
[1720799874619,16.4037,139.35,139.25,7.51442941]
[1720799874824,16.4037,139.35,139.26,20.0]
[1720799875527,16.4037,139.35,139.27,45.0]
[1720799875729,16.4037,139.35,139.28,20.0]
[1720799875912,16.4037,139.35,139.29,45.0]
[1720799876115,16.4037,139.35,139.3,20.0]
[1720799879131,16.4037,139.35,139.26,20.0]
[1720799879309,50.9037,139.35,139.26,20.0]
[1720799880322,50.9037,139.35,139.27,45.0]
[1720799880622,16.6027,139.33,139.28,20.0]
[1720799882338,16.6027,139.33,139.25,7.51442941]
[1720799882632,40.543,139.32,139.21,380.7]
[1720799882833,40.543,139.32,139.21,388.21674417]
[1720799883008,16.6027,139.33,139.22,6.6496]
[1720799883209,16.6027,139.33,139.22,41.1496]
[1720799883818,16.6027,139.33,139.22,6.6496]
[1720799884014,16.6027,139.33,139.23,45.0]
[1720799884225,16.6027,139.33,139.21,388.21674417]
[1720799884226,41.0642,139.32,139.21,388.21674417]
[1720799884423,15.6927,139.3,139.21,388.21674417]
[1720799886236,15.6927,139.3,139.22,45.0]
[1720799886732,15.6927,139.3,139.23,20.0]
[1720799886931,15.6927,139.3,139.24,45.0]
[1720799887238,15.6927,139.3,139.25,20.0]
[1720799887448,15.6927,139.3,139.23,20.0]
[1720799887736,15.6927,139.3,139.24,45.0]
[1720799887928,15.6927,139.3,139.25,20.0]
[1720799888517,15.6927,139.3,139.22,20.0]
[1720799889414,15.6927,139.3,139.23,46.4360653]
[1720799889615,15.6927,139.3,139.24,1.4360732]
[1720799890139,15.6927,139.3,139.24,21.4360732]
[1720799890837,15.6927,139.3,139.24,20.0]
[1720799891038,15.6927,139.3,139.25,45.0]
[1720799891245,15.6927,139.3,139.26,20.77021301]
[1720799891421,15.6927,139.3,139.27,0.77015771]
[1720799891747,15.6927,139.3,139.26,20.0]
[1720799892434,15.6927,139.3,139.22,20.0]
[1720799892629,22.8714,139.3,139.22,20.0]
[1720799892811,50.1927,139.3,139.21,380.7]
[1720799893176,50.1927,139.3,139.21,388.21712079]
[1720799894113,15.6927,139.3,139.21,388.21712079]
[1720799895155,15.6927,139.3,139.22,45.0]
[1720799895322,15.6927,139.3,139.23,20.0]
[1720799895516,15.6927,139.3,139.24,45.0]
[1720799895718,15.6927,139.3,139.25,20.0]
[1720799895926,15.6927,139.3,139.26,45.0]
[1720799896139,15.6927,139.3,139.27,20.0]
[1720799896347,15.6927,139.3,139.25,20.0]
[1720799896841,15.6927,139.3,139.22,20.0]
[1720799897053,15.6927,139.3,139.23,45.0]
[1720799897251,15.6927,139.3,139.24,20.0]
[1720799897450,15.6927,139.3,139.25,45.0]
[1720799897756,15.6927,139.3,139.26,20.0]
[1720799898255,15.6927,139.3,139.21,388.21712079]
[1720799898462,15.6927,139.3,139.22,45.0]
[1720799899124,15.6927,139.3,139.21,388.21712079]
[1720799899327,15.6927,139.3,139.18,24.8198921]
[1720799899529,15.6927,139.3,139.19,20.41924354]
[1720799899831,15.6927,139.3,139.21,7.51720208]
[1720799900131,6.0201,139.29,139.22,20.0]
[1720799900554,6.0201,139.29,139.23,45.0]
[1720799901327,6.0201,139.29,139.24,20.0]
[1720799901844,15.6927,139.3,139.24,20.0]
[1720799902044,15.6927,139.3,139.25,45.0]
[1720799902264,15.6927,139.3,139.26,20.0]
[1720799902458,6.021,139.33,139.27,45.0]
[1720799902754,6.021,139.33,139.28,20.0]
[1720799902939,6.021,139.33,139.29,45.0]
[1720799903153,6.021,139.33,139.3,20.0]
[1720799904334,6.021,139.33,139.23,20.0]
[1720799905037,6.021,139.33,139.22,20.0]
[1720799906155,6.021,139.33,139.23,45.0]
[1720799906465,15.7596,139.32,139.24,20.0]
[1720799906636,15.7596,139.32,139.25,45.0]
[1720799906959,15.7596,139.32,139.26,20.0]
[1720799907644,15.7596,139.32,139.22,20.0]
[1720799908462,15.7596,139.32,139.21,2.83516779]
[1720799908634,15.7596,139.32,139.23,45.0]
[1720799908961,15.7596,139.32,139.24,20.0]
[1720799909136,15.7596,139.32,139.25,45.0]
[1720799909337,15.7596,139.32,139.26,20.0]
[1720799911563,21.3588,139.31,139.18,387.01482652]
[1720799911746,15.1109,139.3,139.18,387.01482652]
[1720799911945,15.1109,139.3,139.19,7.51749138]
[1720799913044,15.1109,139.3,139.2,45.0]
[1720799914455,15.1109,139.3,139.21,20.0]
[1720799914656,15.1109,139.3,139.22,45.0]
[1720799914856,15.1109,139.3,139.23,20.0]
[1720799915064,15.1109,139.3,139.24,45.0]
[1720799915259,15.1109,139.3,139.25,20.0]
[1720799916071,15.1109,139.3,139.26,45.0]
[1720799916370,15.1109,139.3,139.27,20.0]
[1720799917561,15.1109,139.3,139.27,21.4358309]
[1720799917864,15.1109,139.3,139.28,45.0]
[1720799918070,15.1109,139.3,139.29,20.0]
[1720799918446,15.1109,139.3,139.29,65.0]
[1720799920065,16.6059,139.33,139.29,65.0]
[1720799923264,16.6059,139.33,139.29,20.0]
[1720799923464,16.6059,139.33,139.23,20.0]
[1720799923673,16.6059,139.33,139.24,45.0]
[1720799923973,16.6059,139.33,139.25,20.0]
[1720799924164,16.6059,139.33,139.26,45.0]
[1720799924360,16.6059,139.33,139.27,20.0]
[1720799924552,16.6059,139.33,139.28,45.0]
[1720799924752,16.6059,139.33,139.29,20.0]
[1720799925773,16.6059,139.33,139.29,20.80779397]
[1720799925976,16.6059,139.33,139.3,1.43547548]
[1720799926267,16.6059,139.33,139.3,46.43547548]
[1720799926451,16.6059,139.33,139.31,20.0]
[1720799927346,16.6059,139.33,139.26,20.0]
[1720799927546,16.6059,139.33,139.27,45.0]
[1720799927772,16.6059,139.33,139.28,20.0]
[1720799927976,16.6059,139.33,139.29,45.0]
[1720799928175,16.6059,139.33,139.3,20.0]
[1720799929675,16.1792,139.37,139.31,45.0]
[1720799929874,16.1792,139.37,139.32,20.0]
[1720799930647,16.1792,139.37,139.26,20.0]
[1720799930849,16.1792,139.37,139.27,45.0]
[1720799931064,16.1792,139.37,139.28,20.0]
[1720799931371,16.1792,139.37,139.29,45.0]
[1720799931549,16.1792,139.37,139.3,20.0]
[1720799932059,16.1792,139.37,139.31,45.0]
[1720799932378,16.1792,139.37,139.32,20.0]
[1720799934550,16.1792,139.37,139.26,20.0]
[1720799934746,16.1792,139.37,139.27,45.0]
[1720799935052,16.1792,139.37,139.28,20.0]
[1720799935246,16.1792,139.37,139.29,45.0]
[1720799935476,16.1792,139.37,139.3,20.0]
[1720799935775,16.1792,139.37,139.31,45.0]
[1720799935975,16.1792,139.37,139.32,20.0]
[1720799936776,33.4092,139.37,139.32,37.23]
[1720799937483,17.23,139.36,139.32,20.0]
[1720799939056,33.4092,139.37,139.32,20.0]
[1720799939267,17.23,139.36,139.32,20.0]
[1720799939961,17.23,139.35,139.32,20.0]
[1720799940161,17.23,139.33,139.25,22.9528]
[1720799940363,17.23,139.33,139.28,17.23]
[1720799941074,7.1771,139.34,139.24,6.31482652]
[1720799941281,17.23,139.31,139.26,17.23]
[1720799941473,17.23,139.3,139.25,17.23]
[1720799941673,17.23,139.29,139.24,17.23]
[1720799942185,17.23,139.3,139.25,17.23]
[1720799942353,17.23,139.3,139.26,20.0]
[1720799942558,15.9759,139.32,139.26,20.0]
[1720799942559,17.23,139.31,139.26,20.0]
[1720799942759,15.9759,139.32,139.24,20.0]
[1720799943867,15.9759,139.32,139.25,45.0]
[1720799944071,15.9759,139.32,139.26,20.0]
[1720799944666,15.9759,139.32,139.27,45.0]
[1720799944876,15.9759,139.32,139.28,20.0]
[1720799945081,15.9759,139.32,139.26,20.0]
[1720799945572,15.9759,139.32,139.24,20.0]
[1720799945774,15.9759,139.32,139.25,45.0]
[1720799946070,15.9759,139.32,139.26,20.0]
[1720799946871,15.9759,139.32,139.27,45.0]
[1720799947082,15.9759,139.32,139.28,20.0]
[1720799950969,15.9759,139.32,139.24,20.0]
[1720799951287,15.9759,139.32,139.25,45.0]
[1720799951472,15.9759,139.32,139.26,20.0]
[1720799952083,15.9759,139.32,139.27,45.0]
[1720799952264,15.9759,139.32,139.28,20.0]
[1720799954382,15.9759,139.32,139.27,45.0]
[1720799954577,15.9759,139.32,139.23,7.5154138]
[1720799956469,15.9759,139.32,139.24,65.0]
[1720799958776,57.6536,139.32,139.23,7.5154138]
[1720799959097,57.6536,139.32,139.19,21.6659]
[1720799959303,57.6536,139.32,139.2,7.51742347]
[1720799959507,15.583,139.3,139.2,7.51742347]
[1720799960005,22.7617,139.3,139.2,7.51742347]
[1720799960206,56.4373,139.29,139.2,7.51742347]
[1720799961098,21.9373,139.29,139.2,7.51742347]
[1720799961606,21.9373,139.29,139.21,65.0]
[1720799962278,15.583,139.29,139.21,87.7119]
[1720799962494,15.583,139.29,139.22,1.43588977]
[1720799963000,15.583,139.29,139.21,87.7119]
[1720799964502,15.583,139.29,139.21,20.0]
[1720799965606,6.1,139.28,139.2,7.51742347]
[1720799966606,6.1,139.28,139.21,45.0]
[1720799966810,6.1,139.28,139.2,7.51742347]
[1720799967896,15.2598,139.27,139.2,7.51742347]
[1720799968227,15.2598,139.27,139.21,65.0]
[1720799968412,15.2598,139.27,139.21,45.0]
[1720799968788,15.2598,139.27,139.2,7.51742347]
[1720799968989,15.2598,139.27,139.15,380.7]
[1720799969207,30.0,139.26,139.15,380.7]
[1720799969395,21.1676,139.25,139.16,22.7792325]
[1720799969597,21.1676,139.25,139.16,7.5194325]
[1720799970884,28.349,139.25,139.16,7.5194325]
[1720799971106,22.4328,139.22,139.16,7.5194325]
[1720799971288,46.2311,139.21,139.06,51.666837]
[1720799971488,21.9421,139.2,139.09,7.52255808]
[1720799971691,21.9421,139.2,139.06,22.8593]
[1720799972107,21.9421,139.2,139.09,7.52348592]
[1720799972415,21.9421,139.2,139.06,25.74561678]
[1720799972615,21.9421,139.2,139.1,20.0]
[1720799972913,50.759,139.19,139.06,2.88631678]
[1720799973124,50.759,139.19,139.09,7.52394425]
[1720799973295,50.759,139.19,139.05,380.7]
[1720799973612,50.759,139.19,139.09,7.52368674]
[1720799973816,50.759,139.19,139.05,380.7]
[1720799973817,50.759,139.19,139.05,383.59775353]
[1720799974194,50.759,139.19,139.09,7.52355271]
[1720799974416,50.759,139.19,139.1,20.0]
[1720799974718,50.759,139.19,139.11,45.0]
[1720799974918,50.759,139.19,139.12,20.0]
[1720799975229,16.259,139.19,139.13,45.0]
[1720799975393,16.259,139.19,139.14,20.0]
[1720799976010,16.259,139.19,139.14,20.37147575]
[1720799976204,16.259,139.19,139.14,20.0]
[1720799976408,23.4437,139.19,139.09,7.52334981]
[1720799976717,23.4437,139.19,139.1,45.0]
[1720799976897,16.259,139.19,139.1,45.0]
[1720799977489,16.259,139.19,139.11,1.4373817]
[1720799977693,16.259,139.19,139.1,45.0]
[1720799977921,16.259,139.19,139.11,20.0]
[1720799978229,16.259,139.19,139.12,45.0]
[1720799978405,16.259,139.19,139.13,20.0]